[Event "The Kvibergspelen 2023"]
[Site "Kviberg Park Hotel & Conference, Krutvagen 2, Gothenburg, Sweden"]
[Date "2023.09.15"]
[Round "3.14"]
[White "Ottgard, Andreas"]
[Black "Poley, Vladimir"]
[Result "0-1"]
[TimeControl "15 minutes + 5 seconds per move from move one (Round 1 - 4) / 90 minutes + 30 seconds per move from move one (Round 5 - 8)"]
[BlackTitle "IM"]
[WhiteFideId "1730592"]
[BlackFideId "13500090"]
[WhiteElo "1876"]
[BlackElo "2284"]

1. c4 {[%clk 00:15:08]} {[%emt 00:00:01]} g6 {[%clk 00:15:09]} {[%emt
00:00:02]} 2. g3 {[%clk 00:15:12]} {[%emt 00:00:01]} Bg7 {[%clk 00:15:14]} 3.
Bg2 {[%clk 00:15:15]} {[%emt 00:00:02]} Nc6 {[%clk 00:15:16]} {[%emt 00:00:03]}
4. Nc3 {[%clk 00:15:07]} {[%emt 00:00:13]} e5 {[%clk 00:15:20]} {[%emt
00:00:02]} 5. d3 {[%clk 00:14:49]} {[%emt 00:00:22]} d6 {[%clk 00:15:23]}
{[%emt 00:00:02]} 6. Nf3 {[%clk 00:14:51]} {[%emt 00:00:03]} Bg4 {[%clk
00:15:25]} {[%emt 00:00:02]} 7. h3 {[%clk 00:14:28]} {[%emt 00:00:28]} Bd7
{[%clk 00:15:29]} {[%emt 00:00:02]} 8. Rb1 {[%clk 00:13:43]} {[%emt 00:00:50]}
Qc8 {[%clk 00:15:01]} {[%emt 00:00:33]} 9. b4 {[%clk 00:13:30]} {[%emt
00:00:17]} Nf6 {[%clk 00:14:54]} {[%emt 00:00:12]} 10. a4 {[%clk 00:13:01]}
{[%emt 00:00:34]} h6 {[%clk 00:14:22]} {[%emt 00:00:37]} 11. Bd2 {[%clk
00:12:25]} {[%emt 00:00:41]} O-O {[%clk 00:14:18]} {[%emt 00:00:09]} 12. h4
{[%clk 00:11:40]} {[%emt 00:00:49]} Re8 {[%clk 00:13:55]} {[%emt 00:00:29]} 13.
Qc1 {[%clk 00:10:05]} {[%emt 00:01:40]} h5 {[%clk 00:13:55]} {[%emt 00:00:05]}
14. O-O {[%clk 00:09:22]} {[%emt 00:00:48]} e4 {[%clk 00:13:41]} {[%emt
00:00:19]} 15. Ng5 {[%clk 00:06:39]} {[%emt 00:02:49]} exd3 {[%clk 00:13:42]}
{[%emt 00:00:03]} 16. exd3 {[%clk 00:06:40]} {[%emt 00:00:04]} Nd4 {[%clk
00:13:41]} {[%emt 00:00:06]} 17. b5 {[%clk 00:04:45]} {[%emt 00:01:59]} Bf5
{[%clk 00:13:37]} {[%emt 00:00:10]} 18. Be3 {[%clk 00:02:56]} {[%emt 00:01:54]}
Ng4 {[%clk 00:13:02]} {[%emt 00:00:39]} 19. Qd2 {[%clk 00:02:36]} {[%emt
00:00:26]} c6 {[%clk 00:10:37]} {[%emt 00:02:30]} 20. Nce4 {[%clk 00:02:30]}
{[%emt 00:00:11]} Qd7 {[%clk 00:09:18]} {[%emt 00:01:24]} 21. Bf4 {[%clk
00:02:19]} {[%emt 00:00:15]} Ne5 {[%clk 00:09:03]} {[%emt 00:00:20]} 22. Bxe5
{[%clk 00:01:05]} {[%emt 00:01:20]} dxe5 {[%clk 00:08:52]} {[%emt 00:00:16]} 23.
Qe3 {[%clk 00:00:37]} {[%emt 00:00:32]} Rad8 {[%clk 00:08:17]} {[%emt
00:00:40]} 24. Rfd1 {[%clk 00:00:34]} {[%emt 00:00:07]} Qe7 {[%clk 00:07:58]}
{[%emt 00:00:24]} 25. Nf3 {[%clk 00:00:26]} {[%emt 00:00:13]} Bg4 {[%clk
00:07:47]} {[%emt 00:00:17]} 26. Rd2 {[%clk 00:00:16]} {[%emt 00:00:15]} Qa3
{[%clk 00:06:32]} {[%emt 00:01:20]} 27. Rdb2 {[%emt 00:00:16]} 0-1

[Event "The Kvibergspelen 2023"]
[Site "Kviberg Park Hotel & Conference, Krutvagen 2, Gothenburg, Sweden"]
[Date "2023.09.15"]
[Round "3.15"]
[White "Falkevall, Axel"]
[Black "Olofsson, Hans-Erik"]
[Result "1-0"]
[TimeControl "15 minutes + 5 seconds per move from move one (Round 1 - 4) / 90 minutes + 30 seconds per move from move one (Round 5 - 8)"]
[WhiteTitle "FM"]
[WhiteFideId "1735560"]
[BlackFideId "1716212"]
[WhiteElo "2276"]
[BlackElo "1883"]

1. e4 {[%clk 00:15:08]} {[%emt 00:00:01]} d6 {[%clk 00:15:07]} {[%emt
00:00:05]} 2. d4 {[%clk 00:15:10]} {[%emt 00:00:02]} Nf6 {[%clk 00:15:10]}
{[%emt 00:00:02]} 3. Nc3 {[%clk 00:15:15]} c6 {[%clk 00:15:12]} {[%emt
00:00:03]} 4. Nf3 {[%clk 00:15:02]} {[%emt 00:00:17]} Nbd7 {[%clk 00:15:14]}
{[%emt 00:00:04]} 5. Be2 {[%clk 00:14:51]} {[%emt 00:00:16]} e5 {[%clk
00:15:15]} {[%emt 00:00:03]} 6. O-O {[%clk 00:14:53]} {[%emt 00:00:04]} Be7
{[%clk 00:15:05]} {[%emt 00:00:15]} 7. a4 {[%clk 00:14:49]} {[%emt 00:00:08]}
b6 {[%clk 00:14:40]} {[%emt 00:00:32]} 8. Re1 {[%clk 00:14:30]} {[%emt
00:00:22]} Bb7 {[%clk 00:14:27]} {[%emt 00:00:19]} 9. Nh4 {[%clk 00:13:57]}
{[%emt 00:00:38]} O-O {[%clk 00:13:24]} {[%emt 00:01:07]} 10. Nf5 {[%clk
00:13:54]} {[%emt 00:00:08]} Re8 {[%clk 00:12:50]} {[%emt 00:00:39]} 11. dxe5
{[%clk 00:13:28]} {[%emt 00:00:30]} dxe5 {[%clk 00:12:39]} {[%emt 00:00:17]} 12.
Bc4 {[%clk 00:12:31]} {[%emt 00:01:03]} Nf8 {[%clk 00:10:53]} {[%emt 00:01:50]}
13. Qf3 {[%clk 00:12:23]} {[%emt 00:00:13]} Ng6 {[%clk 00:09:06]} {[%emt
00:01:53]} 14. Bg5 {[%clk 00:11:57]} {[%emt 00:00:30]} Qc7 {[%clk 00:07:34]}
{[%emt 00:01:38]} 15. h4 {[%clk 00:09:41]} {[%emt 00:02:20]} h6 {[%clk
00:05:30]} {[%emt 00:02:09]} 16. Bxf6 {[%clk 00:09:10]} {[%emt 00:00:36]} Bxf6
{[%clk 00:05:08]} {[%emt 00:00:27]} 17. Nxh6+ {[%clk 00:08:59]} {[%emt
00:00:17]} gxh6 {[%clk 00:03:03]} {[%emt 00:02:10]} 18. Qxf6 {[%clk 00:09:02]}
{[%emt 00:00:01]} Qe7 {[%clk 00:02:34]} {[%emt 00:00:35]} 19. Qxg6+ {[%clk
00:09:05]} {[%emt 00:00:02]} 1-0

[Event "The Kvibergspelen 2023"]
[Site "Kviberg Park Hotel & Conference, Krutvagen 2, Gothenburg, Sweden"]
[Date "2023.09.15"]
[Round "3.16"]
[White "Ramsdal, Jens Albert"]
[Black "Ljung, Rickard"]
[Result "1-0"]
[TimeControl "15 minutes + 5 seconds per move from move one (Round 1 - 4) / 90 minutes + 30 seconds per move from move one (Round 5 - 8)"]
[WhiteTitle "FM"]
[WhiteFideId "1429221"]
[BlackFideId "1740156"]
[WhiteElo "2391"]
[BlackElo "1924"]

1. d4 {[%clk 00:15:07]} {[%emt 00:00:03]} Nf6 {[%clk 00:15:06]} {[%emt
00:00:04]} 2. c4 {[%clk 00:15:11]} {[%emt 00:00:02]} d6 {[%clk 00:15:09]}
{[%emt 00:00:03]} 3. Nc3 {[%clk 00:15:07]} {[%emt 00:00:08]} g6 {[%clk
00:15:12]} {[%emt 00:00:02]} 4. e4 {[%clk 00:15:08]} {[%emt 00:00:04]} Bg7
{[%clk 00:15:14]} {[%emt 00:00:03]} 5. h3 {[%clk 00:15:10]} {[%emt 00:00:02]}
O-O {[%clk 00:15:13]} {[%emt 00:00:06]} 6. Be3 {[%clk 00:15:13]} {[%emt
00:00:02]} b6 {[%clk 00:14:13]} {[%emt 00:01:06]} 7. g4 {[%clk 00:14:14]}
{[%emt 00:01:02]} e5 {[%clk 00:13:53]} {[%emt 00:00:26]} 8. d5 {[%clk
00:14:15]} {[%emt 00:00:04]} Nbd7 {[%clk 00:13:46]} {[%emt 00:00:13]} 9. Nge2
{[%clk 00:14:17]} {[%emt 00:00:02]} Nc5 {[%clk 00:13:42]} {[%emt 00:00:09]} 10.
Ng3 {[%clk 00:14:19]} {[%emt 00:00:02]} a5 {[%clk 00:13:42]} {[%emt 00:00:06]}
11. Be2 {[%clk 00:14:09]} {[%emt 00:00:15]} Bd7 {[%clk 00:13:38]} {[%emt
00:00:10]} 12. Qd2 {[%clk 00:14:08]} {[%emt 00:00:05]} c6 {[%clk 00:13:08]}
{[%emt 00:00:35]} 13. Bh6 {[%clk 00:12:04]} {[%emt 00:02:09]} cxd5 {[%clk
00:12:42]} {[%emt 00:00:31]} 14. cxd5 {[%clk 00:11:30]} {[%emt 00:00:39]} b5
{[%clk 00:11:21]} {[%emt 00:01:26]} 15. Bxg7 {[%clk 00:11:33]} {[%emt
00:00:02]} Kxg7 {[%clk 00:11:25]} {[%emt 00:00:01]} 16. f3 {[%clk 00:11:35]}
{[%emt 00:00:03]} b4 {[%clk 00:11:08]} {[%emt 00:00:23]} 17. Nd1 {[%clk
00:11:38]} {[%emt 00:00:01]} Qb6 {[%clk 00:10:13]} {[%emt 00:01:00]} 18. h4
{[%clk 00:09:20]} {[%emt 00:02:24]} Na4 {[%clk 00:08:23]} {[%emt 00:01:55]} 19.
Qg5 {[%clk 00:08:50]} {[%emt 00:00:33]} h6 {[%clk 00:07:45]} {[%emt 00:00:44]}
20. Qd2 {[%clk 00:08:54]} {[%emt 00:00:01]} Qd4 {[%clk 00:07:22]} {[%emt
00:00:28]} 21. Qxd4 {[%clk 00:08:39]} {[%emt 00:00:20]} exd4 {[%clk 00:07:25]}
22. g5 {[%clk 00:08:43]} Ng8 {[%clk 00:06:57]} {[%emt 00:00:35]} 23. Rc1 {[%clk
00:07:58]} {[%emt 00:00:50]} Rac8 {[%clk 00:06:43]} {[%emt 00:00:19]} 24. Rxc8
{[%clk 00:08:01]} {[%emt 00:00:02]} Rxc8 {[%clk 00:06:46]} {[%emt 00:00:03]} 25.
Kd2 {[%clk 00:08:05]} b3 {[%clk 00:05:41]} {[%emt 00:01:10]} 26. axb3 {[%clk
00:07:56]} {[%emt 00:00:14]} Nc5 {[%clk 00:05:45]} {[%emt 00:00:01]} 27. Bc4
{[%clk 00:07:43]} {[%emt 00:00:17]} a4 {[%clk 00:05:39]} {[%emt 00:00:11]} 28.
Ne2 {[%clk 00:07:34]} {[%emt 00:00:13]} axb3 {[%clk 00:05:34]} {[%emt
00:00:11]} 29. Nxd4 {[%clk 00:07:19]} {[%emt 00:00:19]} Nxe4+ {[%clk 00:04:37]}
{[%emt 00:01:03]} 30. fxe4 {[%clk 00:07:23]} {[%emt 00:00:01]} Rxc4 {[%clk
00:04:40]} {[%emt 00:00:02]} 31. Kd3 {[%clk 00:07:14]} {[%emt 00:00:13]} Rb4
{[%clk 00:04:23]} {[%emt 00:00:22]} 32. Nc3 {[%clk 00:06:29]} {[%emt 00:00:51]}
f5 {[%clk 00:03:55]} {[%emt 00:00:34]} 33. Re1 {[%clk 00:06:23]} {[%emt
00:00:10]} hxg5 {[%clk 00:03:30]} {[%emt 00:00:30]} 34. hxg5 {[%clk 00:06:25]}
{[%emt 00:00:03]} Kf7 {[%clk 00:03:23]} {[%emt 00:00:12]} 35. Rh1 {[%clk
00:05:52]} {[%emt 00:00:37]} Kg7 {[%clk 00:02:48]} {[%emt 00:00:41]} 36. Ra1
{[%clk 00:05:56]} {[%emt 00:00:01]} Rb7 {[%clk 00:02:11]} {[%emt 00:00:42]} 37.
Ra6 {[%clk 00:05:52]} {[%emt 00:00:07]} Ne7 {[%clk 00:02:11]} {[%emt 00:00:07]}
38. Rxd6 {[%clk 00:04:47]} {[%emt 00:01:10]} fxe4+ {[%clk 00:02:02]} {[%emt
00:00:13]} 39. Nxe4 {[%clk 00:04:27]} {[%emt 00:00:26]} Bf5 {[%clk 00:01:41]}
{[%emt 00:00:26]} 40. Nxf5+ {[%clk 00:04:30]} {[%emt 00:00:02]} Nxf5 {[%clk
00:01:45]} 41. Ra6 {[%clk 00:03:51]} {[%emt 00:00:44]} Rb4 {[%clk 00:01:45]}
{[%emt 00:00:06]} 42. Ra7+ {[%clk 00:03:38]} {[%emt 00:00:18]} Kf8 {[%clk
00:01:40]} {[%emt 00:00:10]} 43. Nf6 {[%clk 00:03:34]} {[%emt 00:00:09]} Nd6
{[%clk 00:00:55]} {[%emt 00:00:50]} 44. Rd7 {[%clk 00:03:10]} {[%emt 00:00:29]}
Nb5 {[%clk 00:00:37]} {[%emt 00:00:23]} 45. Rb7 {[%clk 00:02:44]} {[%emt
00:00:31]} Rd4+ {[%clk 00:00:12]} {[%emt 00:00:32]} 46. Ke3 {[%clk 00:02:47]}
Rb4 {[%clk 00:00:16]} 47. d6 {[%clk 00:02:33]} {[%emt 00:00:21]} 1-0

[Event "The Kvibergspelen 2023"]
[Site "Kviberg Park Hotel & Conference, Krutvagen 2, Gothenburg, Sweden"]
[Date "2023.09.15"]
[Round "3.17"]
[White "Pedersen, Daniel Vesterbaek"]
[Black "Odell Johansson, Leo"]
[Result "1-0"]
[TimeControl "15 minutes + 5 seconds per move from move one (Round 1 - 4) / 90 minutes + 30 seconds per move from move one (Round 5 - 8)"]
[WhiteTitle "FM"]
[WhiteFideId "1402161"]
[BlackFideId "1722727"]
[WhiteElo "2163"]
[BlackElo "1886"]

1. e4 {[%clk 00:15:08]} {[%emt 00:00:02]} c5 {[%clk 00:14:41]} {[%emt
00:00:29]} 2. Nf3 {[%clk 00:15:04]} {[%emt 00:00:09]} Nc6 {[%clk 00:14:44]}
{[%emt 00:00:02]} 3. c3 {[%clk 00:14:52]} {[%emt 00:00:18]} Nf6 {[%clk
00:14:44]} {[%emt 00:00:03]} 4. e5 {[%clk 00:14:56]} {[%emt 00:00:02]} Nd5
{[%clk 00:14:48]} {[%emt 00:00:01]} 5. d4 {[%clk 00:15:00]} cxd4 {[%clk
00:14:47]} {[%emt 00:00:07]} 6. cxd4 {[%clk 00:15:04]} {[%emt 00:00:01]} d6
{[%clk 00:14:48]} {[%emt 00:00:03]} 7. Bc4 {[%clk 00:14:31]} {[%emt 00:00:38]}
Nb6 {[%clk 00:14:52]} {[%emt 00:00:02]} 8. Bd3 {[%clk 00:12:50]} {[%emt
00:01:46]} Bg4 {[%clk 00:12:56]} {[%emt 00:02:01]} 9. exd6 {[%clk 00:12:15]}
{[%emt 00:00:41]} Qxd6 {[%clk 00:11:31]} {[%emt 00:01:30]} 10. Be3 {[%clk
00:12:08]} {[%emt 00:00:12]} e5 {[%clk 00:09:45]} {[%emt 00:01:51]} 11. dxe5
{[%clk 00:11:18]} {[%emt 00:00:55]} Nxe5 {[%clk 00:09:36]} {[%emt 00:00:14]} 12.
Bb5+ {[%clk 00:11:01]} {[%emt 00:00:22]} Nbd7 {[%clk 00:04:33]} {[%emt
00:05:08]} 13. Nbd2 {[%clk 00:05:28]} {[%emt 00:05:38]} Bxf3 {[%clk 00:04:06]}
{[%emt 00:00:32]} 14. gxf3 {[%clk 00:04:10]} {[%emt 00:01:24]} a6 {[%clk
00:02:51]} {[%emt 00:01:20]} 15. Be2 {[%clk 00:03:08]} {[%emt 00:01:05]} Nd3+
{[%clk 00:02:09]} {[%emt 00:00:47]} 16. Kf1 {[%clk 00:03:02]} {[%emt 00:00:12]}
Nf4 {[%clk 00:01:29]} {[%emt 00:00:45]} 17. Ne4 {[%clk 00:02:54]} {[%emt
00:00:13]} Qxd1+ {[%clk 00:00:56]} {[%emt 00:00:39]} 18. Bxd1 {[%clk 00:02:21]}
{[%emt 00:00:37]} Nd5 {[%clk 00:00:48]} {[%emt 00:00:13]} 19. Bd4 {[%clk
00:02:02]} {[%emt 00:00:25]} Rc8 {[%clk 00:00:32]} {[%emt 00:00:21]} 20. Bb3
{[%clk 00:01:57]} {[%emt 00:00:10]} Nb4 {[%clk 00:00:18]} {[%emt 00:00:19]} 21.
a3 {[%clk 00:01:41]} {[%emt 00:00:21]} Nc6 {[%clk 00:00:22]} 22. Bc3 {[%clk
00:01:35]} {[%emt 00:00:12]} f6 {[%clk 00:00:23]} {[%emt 00:00:04]} 23. Rd1
{[%clk 00:01:31]} {[%emt 00:00:09]} Nde5 {[%clk 00:00:18]} {[%emt 00:00:09]} 24.
Kg2 {[%clk 00:01:18]} {[%emt 00:00:18]} h5 {[%clk 00:00:13]} {[%emt 00:00:10]}
25. Rhe1 {[%clk 00:01:07]} {[%emt 00:00:15]} Rd8 {[%clk 00:00:14]} {[%emt
00:00:05]} 26. Bd5 {[%clk 00:00:44]} {[%emt 00:00:27]} Kd7 {[%clk 00:00:13]}
{[%emt 00:00:07]} 27. Bxc6+ {[%clk 00:00:43]} {[%emt 00:00:07]} Kxc6 {[%clk
00:00:08]} {[%emt 00:00:10]} 28. Rxd8 {[%clk 00:00:46]} Ng6 {[%clk 00:00:07]}
{[%emt 00:00:06]} 29. Red1 {[%clk 00:00:40]} {[%emt 00:00:11]} Be7 {[%clk
00:00:09]} {[%emt 00:00:05]} 30. Rxh8 {[%clk 00:00:43]} {[%emt 00:00:01]} Nxh8
{[%clk 00:00:13]} 31. Bb4 {[%clk 00:00:44]} {[%emt 00:00:03]} Bxb4 {[%clk
00:00:16]} {[%emt 00:00:07]} 32. axb4 {[%clk 00:00:48]} Ng6 {[%clk 00:00:19]}
33. Rd6+ {[%clk 00:00:47]} {[%emt 00:00:04]} Kc7 {[%clk 00:00:22]} {[%emt
00:00:02]} 34. Rd2 {[%clk 00:00:47]} {[%emt 00:00:07]} Kc6 {[%clk 00:00:25]}
{[%emt 00:00:01]} 35. Rd8 {[%clk 00:00:48]} {[%emt 00:00:05]} Kb5 {[%clk
00:00:25]} {[%emt 00:00:04]} 36. Rd7 {[%clk 00:00:47]} {[%emt 00:00:08]} b6
{[%clk 00:00:22]} {[%emt 00:00:10]} 37. Rxg7 {[%clk 00:00:48]} {[%emt
00:00:03]} Nf4+ {[%clk 00:00:23]} {[%emt 00:00:02]} 38. Kf1 {[%clk 00:00:52]}
Kxb4 {[%clk 00:00:26]} {[%emt 00:00:05]} 39. Nxf6 {[%clk 00:00:52]} {[%emt
00:00:02]} a5 {[%clk 00:00:28]} {[%emt 00:00:02]} 40. Rg5 {[%clk 00:00:35]}
{[%emt 00:00:46]} h4 {[%clk 00:00:26]} {[%emt 00:00:10]} 41. Rg4 {[%clk
00:00:36]} {[%emt 00:00:08]} 1-0

[Event "The Kvibergspelen 2023"]
[Site "Kviberg Park Hotel & Conference, Krutvagen 2, Gothenburg, Sweden"]
[Date "2023.09.15"]
[Round "3.18"]
[White "Bohman Karlholm, Adrian"]
[Black "Sandberg, Lucas"]
[Result "1-0"]
[TimeControl "15 minutes + 5 seconds per move from move one (Round 1 - 4) / 90 minutes + 30 seconds per move from move one (Round 5 - 8)"]
[WhiteFideId "1720643"]
[BlackFideId "1773712"]
[WhiteElo "2134"]
[BlackElo "1439"]

1. d4 {[%clk 00:15:08]} {[%emt 00:00:02]} Nf6 {[%clk 00:15:08]} {[%emt
00:00:02]} 2. c4 {[%clk 00:15:11]} {[%emt 00:00:01]} e6 {[%clk 00:15:13]} 3.
Nc3 {[%clk 00:15:15]} {[%emt 00:00:03]} Bb4 {[%clk 00:15:17]} {[%emt 00:00:01]}
4. g3 {[%clk 00:15:17]} {[%emt 00:00:03]} O-O {[%clk 00:15:04]} {[%emt
00:00:18]} 5. Bg2 {[%clk 00:15:19]} {[%emt 00:00:02]} d5 {[%clk 00:15:07]}
{[%emt 00:00:02]} 6. Nf3 {[%clk 00:15:20]} {[%emt 00:00:03]} c6 {[%clk
00:14:44]} {[%emt 00:00:30]} 7. Qb3 {[%clk 00:15:17]} {[%emt 00:00:07]} Bd6
{[%clk 00:14:23]} {[%emt 00:00:25]} 8. O-O {[%clk 00:15:14]} {[%emt 00:00:09]}
Nbd7 {[%clk 00:14:24]} {[%emt 00:00:05]} 9. Re1 {[%clk 00:14:26]} {[%emt
00:00:51]} a5 {[%clk 00:13:54]} {[%emt 00:00:36]} 10. e4 {[%clk 00:14:14]}
{[%emt 00:00:17]} dxe4 {[%clk 00:13:57]} {[%emt 00:00:02]} 11. Nxe4 {[%clk
00:14:16]} {[%emt 00:00:02]} Nxe4 {[%clk 00:13:58]} {[%emt 00:00:05]} 12. Rxe4
{[%clk 00:14:19]} {[%emt 00:00:02]} Nf6 {[%clk 00:13:58]} {[%emt 00:00:05]} 13.
Re2 {[%clk 00:13:59]} {[%emt 00:00:25]} a4 {[%clk 00:13:28]} {[%emt 00:00:35]}
14. Qc2 {[%clk 00:13:48]} {[%emt 00:00:16]} h6 {[%clk 00:12:26]} {[%emt
00:01:07]} 15. Bd2 {[%clk 00:13:09]} {[%emt 00:00:44]} c5 {[%clk 00:10:50]}
{[%emt 00:01:41]} 16. Bc3 {[%clk 00:12:20]} {[%emt 00:00:53]} cxd4 {[%clk
00:10:25]} {[%emt 00:00:31]} 17. Bxd4 {[%clk 00:12:18]} {[%emt 00:00:07]} Bd7
{[%clk 00:09:46]} {[%emt 00:00:44]} 18. Rd1 {[%clk 00:11:52]} {[%emt 00:00:31]}
Be7 {[%clk 00:08:41]} {[%emt 00:01:11]} 19. Bxf6 {[%clk 00:11:03]} {[%emt
00:00:53]} 1-0